bitfinex-derivatives/quotes_SOLF0:USTF0_20240904
["timestamp","ask_amount","ask_price","bid_price","bid_amount"]
[1725461689634,0.05649447,133.07,133.04,0.05576987]
[1725461690243,3.77002368,133.07,133.04,0.05576987]
[1725461690433,0.05649447,133.07,133.04,0.05576987]
[1725461690742,3.73571187,133.06,133.04,0.05576987]
[1725461691042,3.758,133.06,133.04,0.05576987]
[1725461691234,26.21649447,133.07,133.04,0.05576987]
[1725461691439,30.06048785,133.07,133.04,0.05576987]
[1725461691834,3.7578,133.06,133.04,0.05576987]
[1725461692031,30.06048785,133.07,133.04,0.05576987]
[1725461692242,3.7581,133.05,133.04,0.05576987]
[1725461692538,29.9181,133.05,133.04,0.05576987]
[1725461693544,26.16,133.05,133.04,0.05576987]
[1725461693740,30.06048785,133.07,133.04,0.05576987]
[1725461694045,3.90048785,133.07,133.04,0.05576987]
[1725461694240,7.65818785,133.07,133.04,0.05576987]
[1725461694635,0.05649447,133.07,133.04,0.05576987]
[1725461695139,3.7581,133.06,133.04,0.05576987]
[1725461695539,3.67451304,133.05,133.04,0.05576987]
[1725461696136,3.758,133.06,133.04,0.05576987]
[1725461696539,7.45987969,133.06,133.04,0.05576987]
[1725461697139,3.70187969,133.06,133.04,0.05576987]
[1725461698041,3.81409447,133.07,133.04,3.81416987]
[1725461698243,0.05649447,133.07,133.04,0.05576987]
[1725461698633,0.05649447,133.07,133.05,3.758]
[1725461699041,3.84709597,133.07,133.04,0.05576987]
[1725461699247,3.758,133.06,133.04,0.05576987]
[1725461699443,3.7734927,133.05,133.04,0.05576987]
[1725461699940,26.21649447,133.07,133.04,0.05576987]
[1725461700340,3.7581,133.05,133.04,0.05576987]
[1725461700943,3.76871819,133.07,133.04,0.05576987]
[1725461701135,0.05649447,133.07,133.04,0.05576987]
[1725461701842,0.05649447,133.07,133.06,3.7578]
[1725461702038,0.05649447,133.07,133.04,0.05576987]
[1725461702444,3.83863249,133.07,133.04,0.05576987]
[1725461702645,0.05649447,133.07,133.04,0.05576987]
[1725461703439,0.05649447,133.07,133.05,3.7581]
[1725461703644,0.05649447,133.07,133.04,0.05576987]
[1725461703645,3.75443462,133.07,133.04,0.05576987]
[1725461703950,0.05649447,133.07,133.04,0.05576987]
[1725461704147,0.05649447,133.07,133.06,3.7578]
[1725461704357,0.05649447,133.07,133.06,7.44446365]
[1725461704655,4.2804,133.15,133.06,7.44446365]
[1725461704656,2.1034,133.15,133.1,3.7566]
[1725461704945,26.16,133.14,133.05,2.1602]
[1725461705153,26.16,133.14,133.08,3.7572]
[1725461705353,29.9898752,133.14,133.06,3.72951435]
[1725461705543,0.05322537,133.11,133.09,0.04758397]
[1725461706149,29.9167,133.1,133.09,0.04758397]
[1725461706343,26.16,133.1,132.97,28.191]
[1725461706539,26.16,133.09,132.97,28.191]
[1725461706740,29.9172,133.09,132.97,28.191]
[1725461707344,0.05780161,133.04,133.03,3.7587]
[1725461707548,0.05420861,133.05,133.02,0.0508891]
[1725461708045,0.05420861,133.05,133.04,3.7584]
[1725461708848,26.16,133.12,133.08,3.757]
[1725461709044,29.9898752,133.14,133.02,30.1752]
[1725461709251,26.16,133.16,133.06,26.16]
[1725461709557,122.83915109,133.18,133.06,26.16]
[1725461709952,0.05038144,133.13,133.12,3.7561]
[1725461710152,130.27066376,133.18,133.11,0.05732099]
[1725461710153,0.05573304,133.14,133.11,0.05732099]
[1725461710458,0.05573304,133.14,133.12,3.7559]
[1725461710655,0.05573304,133.14,133.11,0.05732099]
[1725461711552,0.05573304,133.14,133.12,3.7559]
[1725461711757,0.05573304,133.14,133.11,0.05732099]
[1725461713261,0.05573304,133.14,133.12,3.7561]
[1725461713853,0.05573304,133.14,133.13,3.68481622]
[1725461714053,26.16,133.33,133.13,26.16]
[1725461714054,26.16,133.24,133.13,26.16]
[1725461714350,26.16,133.29,133.18,26.16]
[1725461714655,26.16,133.4,133.2,26.16]
[1725461714656,26.16,133.32,133.2,26.16]
[1725461714858,29.9105,133.32,133.2,26.16]
[1725461715057,0.04990718,133.27,133.25,0.05123814]
[1725461715261,0.05155044,133.27,133.25,0.05123814]
[1725461715860,0.05155044,133.27,133.25,3.80363814]
[1725461716054,0.05155044,133.27,133.25,0.05123814]
[1725461716448,26.16,133.32,133.25,0.05123814]
[1725461716864,3.751,133.31,133.25,0.05123814]
[1725461717054,26.16,133.28,133.25,0.05123814]
[1725461717261,26.16,133.28,133.19,4.1856]
[1725461717457,0.05775822,133.25,133.22,0.04743303]
[1725461720154,3.753,133.23,133.22,0.04743303]
[1725461720361,7.4770033,133.23,133.22,0.04743303]
[1725461720864,0.05775822,133.25,133.22,0.04743303]
[1725461721657,0.05775822,133.25,133.22,3.86566262]
[1725461722558,0.05775822,133.25,133.22,0.04743303]
[1725461722757,3.753,133.23,133.22,0.04743303]
[1725461722965,33.64489221,133.23,133.22,0.04743303]
[1725461723160,29.89189221,133.23,133.13,4.3932]
[1725461723458,29.9139,133.2,133.13,8.15098728]
[1725461723760,29.9139,133.2,133.14,3.7554]
[1725461723952,26.16,133.2,133.13,8.15098728]
[1725461724150,0.05596281,133.18,133.15,0.05354438]
[1725461724353,0.05596281,133.18,133.16,3.7548]
[1725461724760,0.05596281,133.18,133.15,0.05354438]
[1725461724950,0.05596281,133.18,133.16,3.755]
[1725461725156,0.05596281,133.18,133.15,0.05354438]
[1725461726867,29.9126,133.25,133.14,26.16]
[1725461727056,2.1789,133.26,133.17,26.16]
[1725461727257,26.16,133.27,133.21,3.7534]
[1725461727567,26.16,133.27,133.13,8.15098728]
[1725461727568,26.16,133.22,133.13,8.15098728]
[1725461728064,0.04979989,133.19,133.16,0.05036489]
[1725461728361,0.04979989,133.19,133.17,3.7545]
[1725461729355,0.04979989,133.19,133.16,0.05036489]
[1725461729556,26.20979989,133.19,133.16,0.05036489]
[1725461730158,0.04979989,133.19,133.16,0.05036489]
[1725461730561,26.16,133.28,133.17,26.16]
[1725461730966,7.4973,133.39,133.19,26.16]
[1725461730967,26.16,133.3,133.19,26.16]
[1725461731157,26.16,133.3,133.24,3.7526]
[1725461731358,30.3134,133.32,133.21,26.16]
[1725461731554,0.05726763,133.28,133.25,0.04791462]
[1725461732265,0.05726763,133.28,133.27,3.7519]
[1725461732467,0.05726763,133.28,133.25,0.04791462]
[1725461732659,0.05726763,133.28,133.25,3.80041462]
[1725461732859,0.05726763,133.28,133.25,0.04791462]
[1725461733264,0.05726763,133.28,133.27,3.7519]
[1725461733568,4.3104,133.37,133.25,26.16]
[1725461733754,7.56827307,133.36,133.29,3.7512]
[1725461733959,26.16,133.35,133.29,3.7512]
[1725461734368,26.16,133.33,133.22,2.0054]
[1725461734563,0.05242213,133.29,133.26,0.05272603]
[1725461736064,0.05242213,133.29,133.27,3.7519]
[1725461737066,0.05242213,133.29,133.28,3.7516]
[1725461737458,0.05242213,133.29,133.26,3.80462603]
[1725461737665,0.05242213,133.29,133.26,0.05272603]
[1725461738067,0.05242213,133.29,133.26,3.80472603]
[1725461738261,0.05242213,133.29,133.26,0.05272603]
[1725461738665,26.16,133.28,133.26,0.05272603]
[1725461738864,29.9118,133.28,133.26,0.05272603]
[1725461739261,33.62681463,133.28,133.26,0.05272603]
[1725461739460,33.62681463,133.28,133.15,6.3886]
[1725461739461,29.99319576,133.28,133.15,6.3886]
[1725461739769,28.1669,133.29,133.23,3.7529]
[1725461739972,2.1431,133.32,133.23,3.82494184]
[1725461740268,26.16,133.31,133.2,26.16]
[1725461740466,3.7511,133.3,133.2,29.92416297]
[1725461740665,26.16,133.31,133.25,3.7523]
[1725461740870,26.16,133.31,133.2,29.92416297]
[1725461741067,0.04760755,133.29,133.2,29.92416297]
[1725461741373,0.05749126,133.26,133.25,3.7525]
[1725461741675,0.05749126,133.26,133.24,0.05248578]
[1725461741676,0.0527144,133.27,133.24,0.05397531]
[1725461743671,0.0527144,133.27,133.26,3.7522]
[1725461743877,0.0527144,133.27,133.24,0.05397531]
[1725461744063,26.2127144,133.27,133.24,0.05397531]
[1725461745271,26.16,133.25,133.24,0.05397531]
[1725461745464,26.16,133.25,133.15,6.3886]
[1725461746170,3.7528,133.24,133.15,6.3886]
[1725461746370,3.7528,133.24,133.18,3.7543]
[1725461746675,0.05452262,133.21,133.18,3.80178717]
[1725461747070,0.05452262,133.21,133.18,0.04748717]
[1725461747273,26.16,133.2,133.08,32.4089]
[1725461747466,26.16,133.17,133.08,32.4089]
[1725461747665,26.16,133.15,132.99,7.5196]
[1725461747963,2.1679,133.23,133.07,26.16]
[1725461748164,29.9138,133.21,133.14,3.7554]
[1725461748374,5.94560265,133.23,133.16,0.05347578]
[1725461748375,32.10560265,133.23,133.16,0.05347578]
[1725461748575,0.05256316,133.19,133.16,0.05347578]
[1725461748768,0.05256316,133.19,133.18,3.7545]
[1725461749877,2.1628,133.26,133.18,26.16]
[1725461750272,3.7526,133.25,133.16,30.3532]
[1725461750480,28.3228,133.26,133.16,4.1932]
[1725461750677,0.05092552,133.22,133.2,0.05144092]
[1725461751373,0.05092552,133.22,133.21,3.7536]
[1725461752469,2.0936,133.3,133.25,3.7524]
[1725461752670,2.0936,133.3,133.2,26.16]
[1725461752880,2.0936,133.3,133.25,3.68553411]
[1725461753076,2.0936,133.3,133.2,26.16]
[1725461753474,0.05548443,133.26,133.24,0.05156881]
[1725461753679,0.05548443,133.26,133.25,3.7525]
[1725461753982,29.83014488,133.35,133.25,26.16]
[1725461754178,26.16,133.35,133.25,29.96564522]
[1725461754377,29.9098,133.35,133.25,29.96564522]
[1725461754678,26.16,133.35,133.28,3.7514]
[1725461754979,0.05058734,133.33,133.3,0.05143905]
[1725461755575,26.21058734,133.33,133.3,0.05143905]
[1725461755774,26.16,133.33,133.24,2.1645]
[1725461756182,29.9104,133.33,133.24,2.1645]
[1725461756379,26.16,133.33,133.25,3.7524]
[1725461756677,26.16,133.35,133.24,2.1645]
[1725461756884,0.0563442,133.31,133.29,3.7511]
[1725461757078,0.0563442,133.31,133.29,0.04788458]
[1725461757577,0.0563442,133.31,133.29,3.79918458]
[1725461757776,0.0563442,133.31,133.29,0.04788458]
[1725461759673,0.0563442,133.31,133.29,3.79908458]
[1725461760077,29.9302581,133.3,133.15,3.83104199]
[1725461760284,26.16,133.27,133.16,4.1336]
[1725461760479,30.2123,133.29,133.17,26.16]
[1725461761182,3.7533,133.23,133.16,7.91098595]
[1725461761384,26.16,133.25,133.16,7.91098595]
[1725461761584,0.05649719,133.21,133.18,0.05194533]
[1725461761888,0.05649719,133.21,133.2,3.7539]
[1725461762486,0.05649719,133.21,133.18,0.05194533]
[1725461762988,3.81029719,133.21,133.18,0.05194533]
[1725461763180,26.16,133.2,133.08,32.3467]
[1725461763384,29.9147,133.18,133.1,3.7565]
[1725461763677,26.16,133.18,133.08,6.1867]
[1725461764082,3.7552,133.16,133.09,3.7567]
[1725461764293,0.04747435,133.14,133.11,0.04870146]
[1725461764802,2.2134,133.2,133.1,26.16]
[1725461765005,26.16,133.24,133.13,26.16]
[1725461765405,3.7533,133.22,133.15,3.7551]
[1725461765604,3.83179325,133.22,133.14,3.66388701]
[1725461765798,0.04759541,133.19,133.17,0.05741616]
[1725461765995,26.16,133.21,133.17,0.05299871]
[1725461766199,26.21004088,133.19,133.17,0.05299871]
[1725461766403,26.21004088,133.19,133.08,32.3467]
[1725461766404,26.16,133.19,133.08,32.3467]
[1725461766601,26.16,133.19,133.12,3.7561]
[1725461766807,3.71046502,133.21,133.08,32.3467]
[1725461767001,26.16,133.19,133.09,1.37926601]
[1725461767196,30.3082,133.26,133.14,26.16]
[1725461767396,0.05655445,133.21,133.19,0.05062955]
[1725461767601,0.05061903,133.21,133.19,0.05062955]
[1725461767800,0.05061903,133.21,133.2,3.7539]
[1725461768008,2.173,133.32,133.19,0.05062955]
[1725461768009,26.16,133.31,133.19,26.16]
[1725461768207,2.173,133.32,133.21,26.16]
[1725461768514,2.173,133.32,133.26,3.7519]
[1725461768806,2.173,133.32,133.24,3.7527]
[1725461769002,26.16,133.31,133.24,3.7527]
[1725461769210,0.05701355,133.29,133.27,0.051024]
[1725461771107,0.05701355,133.29,133.27,3.802724]
[1725461771402,0.05701355,133.29,133.27,0.051024]
[1725461772302,0.05701355,133.29,133.19,26.16]
[1725461772303,26.16,133.29,133.19,26.16]
[1725461772514,26.16,133.31,133.19,26.16]
[1725461772700,26.16,133.31,133.2,2.196]
[1725461773305,0.04941261,133.27,133.24,3.80378378]
[1725461773607,26.20941261,133.27,133.24,0.05108378]
[1725461773910,29.9125,133.25,133.19,3.754]
[1725461774210,29.9125,133.25,133.13,4.3466]
[1725461774211,26.16,133.22,133.13,6.5589]
[1725461774507,26.16,133.2,133.13,2.2123]
[1725461774802,26.21178616,133.18,133.15,0.0512191]
[1725461775006,0.05308121,133.18,133.15,0.04750177]
[1725461775507,0.05308121,133.18,133.15,3.80270177]
[1725461775715,0.05308121,133.18,133.15,0.04750177]
[1725461776213,26.21308121,133.18,133.15,0.04750177]
[1725461776506,26.16,133.16,133.09,1.37896229]
[1725461776709,26.16,133.14,133.04,26.16]
[1725461777007,26.16,133.14,133.05,1.37934901]
[1725461777212,26.16,133.11,133.06,1.37934901]
[1725461777506,0.05672115,133.1,133.07,0.05764856]
[1725461779015,3.81362115,133.1,133.07,0.05764856]
[1725461779316,3.81362115,133.1,133.04,1.37957135]
[1725461779507,3.81352115,133.1,133.04,1.37957135]
[1725461780105,3.81352115,133.1,133.04,5.13797135]
[1725461780306,3.81352115,133.1,133.06,0.05098413]
[1725461780507,0.05672115,133.1,133.06,0.05098413]
[1725461780911,26.16,133.07,133.04,1.37956768]
[1725461781106,26.16,133.07,132.97,26.16]
[1725461781305,26.16,133.07,132.98,1.37959495]
[1725461781506,29.9178,133.07,132.98,1.37959495]
[1725461781712,26.16,133.07,132.98,1.37959495]
[1725461781915,2.203,133.1,133.01,0.05131471]
[1725461781916,0.05313379,133.04,133.01,0.05131471]
[1725461782217,0.05313379,133.04,133.03,3.7587]
[1725461782218,0.05099686,133.04,133.03,3.7587]
[1725461782512,0.05099686,133.04,133.03,1.37958526]
[1725461782813,0.05099686,133.04,133.02,3.7587]
[1725461783009,0.05099686,133.04,133.03,1.3795827]
[1725461783508,0.05099686,133.04,133.01,0.05347797]
[1725461783709,0.05099686,133.04,133.03,1.3795827]
[1725461783909,0.05099686,133.04,133.02,3.759]
[1725461784109,0.05099686,133.04,133.01,1.43306067]
[1725461784110,0.05099686,133.04,133.03,1.3795827]
[1725461784611,0.05099686,133.04,133.01,0.05347797]
[1725461785514,0.05099686,133.04,133.01,5.27759532]
[1725461785805,0.05099686,133.04,133.02,1.3795827]
[1725461786211,0.05099686,133.04,133.03,3.7587]
[1725461786512,0.05099686,133.04,133.03,5.1382827]
[1725461788305,0.05099686,133.04,133.03,1.3795827]
[1725461788505,0.05099686,133.04,133.01,0.05347797]
[1725461788708,0.05099686,133.04,133.01,1.43306067]
[1725461789107,0.05099686,133.04,133.01,5.27551406]
[1725461789312,0.05099686,133.04,133.02,5.1385827]
[1725461789514,0.05099686,133.04,133.03,1.3795827]
[1725461790112,0.05099686,133.04,133.02,1.3795827]
[1725461790317,0.05099686,133.04,133.03,1.3795827]
[1725461790517,0.05099686,133.04,133.01,3.89593136]
[1725461790711,0.05099686,133.04,133.02,1.37959583]
[1725461791324,0.05099686,133.04,133.03,1.37959583]
[1725461791525,0.05099686,133.04,133.03,1.37960806]
[1725461791821,0.05099686,133.04,133.01,0.05347797]
[1725461792719,0.05099686,133.04,133.01,1.43308603]
[1725461793722,0.05099686,133.04,133.01,5.17960832]
[1725461794024,0.05099686,133.04,133.03,29.9187]
[1725461794220,2.1192,133.12,133.03,27.53960806]
[1725461794413,2.1192,133.12,133.05,26.16]
[1725461794615,2.1192,133.12,133.07,3.7573]
[1725461794814,2.1192,133.12,133.05,26.16]
[1725461794815,2.1192,133.12,133.03,26.16]
[1725461795023,2.1192,133.12,133.06,3.7578]
[1725461795218,2.1192,133.12,133.03,26.16]
[1725461795522,0.05045579,133.09,133.06,0.05022838]
[1725461796223,0.05045579,133.09,133.06,1.42972282]
[1725461796422,0.05045579,133.09,133.08,29.9173]
[1725461796624,0.05045579,133.09,133.06,0.05022838]
[1725461796924,0.05045579,133.09,133.06,1.42964959]
[1725461797125,0.05045579,133.09,133.06,0.05022838]
[1725461800129,0.05045579,133.09,133.06,3.80802838]
[1725461801724,26.16,133.08,133.06,0.05022838]
[1725461801919,26.16,133.08,133.03,1.37955946]
[1725461802123,26.16,133.08,132.96,26.16]
[1725461802124,3.7583,133.05,132.98,3.7599]
[1725461802318,26.16,133.06,132.99,1.37959798]
[1725461802539,26.16,133.06,133.0,1.37959798]
[1725461802827,7.54212767,133.05,133.01,1.37959798]
[1725461803026,26.16,133.03,133.02,1.43719216]
[1725461803220,26.16,133.03,132.95,3.74285929]
[1725461803523,3.7593,133.02,132.96,1.37965699]
[1725461803723,29.89138817,133.03,132.96,1.37965699]
[1725461803924,3.7582,133.05,132.97,1.37965699]
[1725461804226,4.2987,133.07,132.98,1.37965699]
[1725461804423,0.05393036,133.02,133.01,3.7593]
[1725461804621,0.05309084,133.03,133.01,5.20084412]
[1725461804818,0.05309084,133.03,133.02,1.37959281]
[1725461805018,0.05309084,133.03,133.02,3.759]
[1725461805222,0.05309084,133.03,133.02,5.13859035]
[1725461806524,26.16,133.1,133.02,1.37959035]
[1725461807323,2.0493,133.11,133.02,1.37959035]
[1725461807527,0.05211869,133.08,133.05,0.05282921]
[1725461807731,0.05211869,133.08,133.06,3.7577]
[1725461808038,0.05211869,133.08,133.05,0.05282921]
[1725461809430,0.05211869,133.08,133.05,1.43237856]
[1725461809636,0.05211869,133.08,133.06,1.37954935]
[1725461809835,0.05211869,133.08,133.05,0.05282921]
[1725461810534,0.05211869,133.08,133.06,3.7576]
[1725461810729,0.05211869,133.08,133.05,0.05282921]
[1725461811126,0.05211869,133.08,133.06,3.7578]
[1725461811329,0.05211869,133.08,133.05,0.05282921]
[1725461811824,0.05211869,133.08,133.05,3.80123077]
[1725461812029,0.05211869,133.08,133.06,1.3795339]
[1725461812222,0.05211869,133.08,133.07,3.7576]
[1725461812427,0.05211869,133.08,133.07,5.1371339]
[1725461812625,26.16,133.16,133.07,5.1371339]
[1725461812626,29.9151,133.16,133.1,3.7567]
[1725461812834,26.16,133.16,133.05,31.92015157]
[1725461813132,3.7555,133.15,133.09,3.7568]
[1725461813328,3.7555,133.15,133.05,31.92015157]
[1725461813539,26.16,133.16,133.05,31.92015157]
[1725461813739,0.04840997,133.12,133.09,3.81158412]
[1725461814041,0.04840997,133.12,133.09,0.05478412]
[1725461814735,0.04840997,133.12,133.11,3.7564]
[1725461816340,0.04840997,133.12,133.09,0.05478412]
[1725461817439,0.04840997,133.12,133.09,3.81168412]
[1725461818238,0.04840997,133.12,133.09,0.05478412]
[1725461818434,26.16,133.11,132.96,26.16]
[1725461818738,26.16,133.09,132.99,2.0451]
[1725461818934,26.16,133.09,132.99,5.7183316]
[1725461819139,26.16,133.06,132.99,2.0451]
[1725461819439,0.05416634,133.04,133.01,0.05397988]
[1725461819637,0.05434531,133.04,133.01,0.0559981]
[1725461819839,0.05434531,133.04,133.03,3.7587]
[1725461820044,0.05434531,133.04,133.03,7.54017786]
[1725461820234,0.05434531,133.04,133.03,3.78147786]
[1725461820439,0.05434531,133.04,133.01,0.0559981]
[1725461822447,26.16,133.03,133.01,0.0559981]
[1725461822746,3.759,133.02,132.95,3.7608]
[1725461823045,26.16,133.0,132.95,3.7608]
[1725461823647,26.16,133.0,132.96,3.7606]
[1725461823848,0.04967072,132.99,132.97,0.05158582]
[1725461824542,26.16,132.98,132.87,2.0056]
[1725461824852,26.16,132.95,132.85,4.0864]
[1725461825144,26.16,132.95,132.87,3.7631]
[1725461825343,26.16,132.93,132.85,3.81607639]
[1725461825544,0.04899782,132.9,132.88,0.04873245]
[1725461827147,0.04899782,132.9,132.88,26.20873245]
[1725461827346,26.16,132.98,132.92,3.7616]
[1725461827643,26.16,132.98,132.88,26.16]
[1725461827839,26.16,132.98,132.92,3.7616]
[1725461828041,26.16,132.98,132.92,7.49636297]
[1725461828241,0.04812661,132.96,132.94,0.04865172]
[1725461828444,32.585,133.04,132.94,0.05018904]
[1725461828638,0.04741841,133.0,132.98,0.0524744]
[1725461828847,26.16,132.99,132.98,0.0524744]
[1725461829142,26.16,132.99,132.91,3.70382908]
[1725461829344,26.16,132.97,132.89,2.0433]
[1725461829746,26.16,132.99,132.89,2.0433]
[1725461830046,0.04889236,132.95,132.93,0.05514849]
[1725461830349,0.05421476,132.95,132.93,0.05514849]
[1725461830743,26.21421476,132.95,132.93,0.05514849]
[1725461830943,26.16,132.95,132.84,2.0555]
[1725461831140,26.16,132.92,132.84,2.0555]
[1725461831339,26.16,132.92,132.86,3.7633]
[1725461831558,26.16,132.92,132.81,29.83795334]
[1725461831849,0.05010665,132.88,132.85,3.79245286]
[1725461832050,0.05010665,132.88,132.86,3.68292315]
[1725461832253,0.05010665,132.88,132.85,0.02895286]
[1725461832549,0.05010665,132.88,132.87,3.7632]
[1725461832944,4.3766,132.96,132.87,3.75818469]
[1725461833145,4.3766,132.96,132.86,26.16]
[1725461833352,4.3766,132.96,132.91,3.7619]
[1725461833644,4.3766,132.96,132.86,29.854965]
[1725461833947,0.05498456,132.92,132.9,0.05005934]
[1725461835042,0.05498456,132.92,132.91,3.7621]
[1725461836048,0.05498456,132.92,132.9,0.05005934]
[1725461836457,0.05498456,132.92,132.9,3.81245934]
[1725461836651,0.05498456,132.92,132.9,0.05005934]
[1725461837954,26.16,132.91,132.82,2.065]
[1725461838158,26.16,132.91,132.85,3.7636]
[1725461838462,26.16,132.91,132.85,3.74106134]
[1725461838762,2.0392,132.96,132.82,2.065]
[1725461838763,26.16,132.93,132.87,3.7631]
[1725461838947,0.05679453,132.91,132.89,0.02900017]
[1725461841963,26.21679453,132.91,132.89,0.02900017]
[1725461842161,29.97899453,132.91,132.89,0.02900017]
[1725461842469,29.97899453,132.91,132.82,3.73503951]
[1725461842470,26.21679453,132.91,132.82,3.73503951]
[1725461842760,29.9231,132.88,132.77,28.2378]
[1725461842960,29.9231,132.88,132.83,3.7641]
[1725461843360,3.81670197,132.87,132.83,3.7641]
[1725461843561,0.05350197,132.87,132.77,2.0778]
[1725461843761,0.04882097,132.83,132.76,2.0318]
[1725461844271,0.04882097,132.83,132.77,26.16]
[1725461844463,0.04882097,132.83,132.8,3.7649]
[1725461844664,0.04882097,132.83,132.76,2.0318]
[1725461845680,0.04882097,132.83,132.8,3.7652]
[1725461845968,0.04882097,132.83,132.8,3.73381024]
[1725461846164,0.04882097,132.83,132.76,2.0318]
[1725461847063,29.97322097,132.83,132.73,29.98058801]
[1725461847267,0.05725026,132.79,132.72,4.1015]
[1725461847468,0.05725026,132.79,132.72,7.86580722]
[1725461848168,0.05725026,132.79,132.73,26.16]
[1725461848370,0.05725026,132.79,132.75,26.16]
[1725461849767,0.05725026,132.79,132.78,3.7658]
[1725461850774,32.4569,132.87,132.78,26.16]
[1725461850979,36.2203,132.87,132.79,2.2064]
[1725461851182,36.2203,132.87,132.8,3.765]
[1725461851381,36.2203,132.87,132.79,6.01258929]
[1725461851782,26.16,132.83,132.82,0.05102215]
[1725461852084,26.16,132.83,132.81,0.04976928]
[1725461852388,26.16,132.83,132.81,0.05235404]
[1725461852389,26.21566897,132.83,132.81,0.05235404]
[1725461853182,0.05566897,132.83,132.81,0.05235404]
[1725461853794,0.05566897,132.83,132.81,3.81715404]
[1725461854085,0.05566897,132.83,132.81,0.05235404]
[1725461854585,26.21566897,132.83,132.81,0.05235404]
[1725461854797,0.05566897,132.83,132.81,0.05235404]
[1725461855489,0.05566897,132.83,132.82,3.7646]
[1725461855690,6.2474,132.92,132.81,26.16]
[1725461856279,10.0094,132.92,132.86,3.7634]
[1725461856479,6.2474,132.92,132.8,4.2061]
[1725461856687,0.05041436,132.87,132.85,0.05243129]
[1725461856882,0.0479744,132.87,132.85,0.05243129]
[1725461857085,0.0479744,132.87,132.86,3.7635]
[1725461857302,0.0479744,132.87,132.86,7.54211445]
[1725461857491,0.0479744,132.87,132.86,3.7635]
[1725461857686,0.0479744,132.87,132.86,7.4346576]
[1725461857888,0.0479744,132.87,132.85,0.05243129]
[1725461859105,3.8111744,132.87,132.85,0.05243129]
[1725461859584,4.1189,132.92,132.85,0.05243129]
[1725461859789,2.0644,132.92,132.85,0.05243129]
[1725461859988,94.23788841,132.97,132.88,26.16]
[1725461860206,26.16,133.0,132.89,2.0737]
[1725461860496,26.16,133.0,132.89,8.02930498]
[1725461860694,26.16,133.0,132.93,0.05436025]
[1725461860695,0.05757289,132.96,132.93,0.05436025]
[1725461860887,26.16,132.95,132.93,0.05436025]
[1725461861092,26.16,132.95,132.81,30.371]
[1725461861303,26.16,132.95,132.82,3.45977709]
[1725461861495,26.16,132.95,132.83,1.38257709]
[1725461861696,26.16,132.95,132.83,3.75159858]
[1725461861889,26.16,132.95,132.84,26.16]
[1725461862090,0.05018632,132.91,132.88,0.05690119]
[1725461862405,0.05018632,132.91,132.9,3.7624]
[1725461863104,0.05018632,132.91,132.88,0.05690119]
[1725461863490,0.05018632,132.91,132.88,3.81970119]
[1725461863802,0.05018632,132.91,132.88,0.05690119]
[1725461865805,0.05018632,132.91,132.89,3.7626]
[1725461867104,0.05018632,132.91,132.88,3.81980119]
[1725461867301,0.05018632,132.91,132.88,0.05690119]
[1725461867500,0.05018632,132.91,132.88,3.81960119]
[1725461867703,0.05018632,132.91,132.88,0.05690119]
[1725461868101,26.16,132.9,132.88,0.05690119]
[1725461868905,29.9226,132.9,132.88,0.05690119]
[1725461869099,26.16,132.9,132.88,0.05690119]
[1725461869602,0.05018632,132.91,132.88,0.05690119]
[1725461874808,0.05018632,132.91,132.88,3.81970119]
[1725461875003,0.05018632,132.91,132.88,0.05690119]
[1725461879506,0.05018632,132.91,132.88,3.81960119]
[1725461879806,4.191,132.98,132.88,0.05690119]
[1725461880007,4.191,132.98,132.89,26.16]
[1725461880201,4.191,132.98,132.9,2.0638]
[1725461880714,4.191,132.98,132.88,2.1779]
[1725461880909,0.05542613,132.94,132.92,0.0497347]
[1725461881117,3.7615,132.93,132.92,0.0497347]
[1725461881410,3.70185073,132.94,132.85,2.0638]
[1725461881622,3.762,132.92,132.86,3.7634]
[1725461882208,3.71163105,132.93,132.85,3.7636]
[1725461882516,0.05359604,132.9,132.88,0.04774858]
[1725461882710,0.04966667,132.9,132.88,0.05019883]
[1725461884319,26.20966667,132.9,132.88,0.05019883]
[1725461884618,26.16,132.88,132.79,2.0638]
[1725461884806,2.039,132.91,132.81,26.16]